fUST/lending_fUST_20260618
["ID","MTS","AMOUNT","RATE_DAILY","PERIOD"]
[425352976,1781712034000,-1109.48013613,0.0001,2]
[425352977,1781712051000,-362.79789299,0.0001,2]
[425352979,1781712068000,-137.20210701,0.0001,2]
[425352982,1781712085000,-500.0,0.0001,2]
[425352985,1781712101000,-308.64224062,0.0001,2]
[425352987,1781712118000,-152.0,0.00010235,7]
[425352988,1781712135000,-152.0,0.00010235,7]
[425352990,1781712152000,-152.0,0.00010238,7]
[425353059,1781712632000,-160.0,0.00011499,2]
[425353061,1781712632000,-291.14425038,0.00011499,2]
[425353066,1781712632000,-285.94924944,0.000115,2]
[425353063,1781712632000,-513.50563237,0.000115,2]
[425353321,1781712638000,-9943.232,0.000115,2]
[425353346,1781712638000,-18523.27787267,0.000115,2]
[425353350,1781712638000,-1348.02949894,0.00012,2]
[425353343,1781712638000,-443.20026816,0.000115,2]
[425353348,1781712638000,-1321.58242708,0.00012,2]
[425353605,1781712646000,-1066.26572235,0.00012898,2]
[425353596,1781712646000,-8284.58122033,0.00012,2]
[425353597,1781712646000,-433.4581101,0.00012155,2]
[425353598,1781712646000,-299.77491075,0.00012898,2]
[425353601,1781712646000,-1066.26572235,0.00012898,2]
[425353604,1781712646000,-1066.26572235,0.00012898,2]
[425353603,1781712646000,-1066.26572235,0.00012898,2]
[425353602,1781712646000,-1066.26572235,0.00012898,2]
[425353599,1781712646000,-1066.26572235,0.00012898,2]
[425353607,1781712646000,-1066.26572235,0.00012898,2]
[425353606,1781712646000,-1066.26572235,0.00012898,2]
[425353612,1781712646000,-1066.26572235,0.00012898,2]
[425353614,1781712646000,-1066.26572235,0.00012898,2]
[425353608,1781712646000,-1066.26572235,0.00012898,2]
[425353600,1781712646000,-1066.26572235,0.00012898,2]
[425353610,1781712646000,-1066.26572235,0.00012898,2]
[425353613,1781712646000,-1066.26572235,0.00012898,2]
[425353611,1781712646000,-1066.26572235,0.00012898,2]
[425353609,1781712646000,-1066.26572235,0.00012898,2]
[425353618,1781712647000,-1172.89229458,0.00012898,2]
[425353617,1781712647000,-1066.26572235,0.00012898,2]
[425353615,1781712647000,-1066.26572235,0.00012898,2]
[425353616,1781712647000,-1066.26572235,0.00012898,2]
[425353620,1781712647000,-1172.89229458,0.00012898,2]
[425353630,1781712647000,-12017.6600992,0.00012899,2]
[425353633,1781712647000,-3500.49068278,0.00012899,2]
[425353635,1781712647000,-5094.95360547,0.00012899,2]
[425353619,1781712647000,-1172.89229458,0.00012898,2]
[425353637,1781712647000,-659.20000001,0.00012899,2]
[425353622,1781712647000,-1172.89229458,0.00012898,2]
[425353647,1781712647000,-5894.7289,0.00012899,2]
[425353646,1781712647000,-3063.27341334,0.00012899,2]
[425353628,1781712647000,-1172.89229458,0.00012898,2]
[425353621,1781712647000,-1172.89229458,0.00012898,2]
[425353626,1781712647000,-1172.89229458,0.00012898,2]
[425353624,1781712647000,-1172.89229458,0.00012898,2]
[425353623,1781712647000,-1172.89229458,0.00012898,2]
[425353714,1781713832000,-221.03620473,0.00011729,7]
[425353712,1781713832000,-221.03620473,0.00011499,7]
[425353716,1781713832000,-57.92759054,0.00012074,7]
[425354172,1781713840000,-163.10861419,0.00012074,7]
[425354174,1781713840000,-500.0,0.00012418,2]
[425354175,1781713840000,-221.03620473,0.00012419,7]
[425354176,1781713840000,-180.057,0.00012543,2]
[425354177,1781713840000,-1973.6070796,0.00012699,2]
[425354241,1781713841000,-3112.95,0.00012699,2]
[425354186,1781713841000,-1214.75008804,0.00012699,2]
[425354445,1781713847000,-79383.63832798,0.00012699,2]
[425354455,1781713847000,-814.7996497,0.00012699,2]
[425354453,1781713847000,-9496.19036491,0.00012699,2]
[425354449,1781713847000,-60243.015688,0.00012699,2]
[425354443,1781713847000,-210414.88740606,0.00012699,2]
[425354451,1781713847000,-1156.65448679,0.00012699,2]
[425354441,1781713847000,-5112.98277569,0.00012599,2]
[425355145,1781715032000,-401.42281911,0.0001103,2]
[425355642,1781715040000,-4598.57718089,0.0001103,2]
[425355644,1781715040000,-302.0,0.00011141,2]
[425355645,1781715040000,-41.56922164,0.00011678,7]
[425355856,1781715043000,-180.05722731,0.00012248,2]
[425355854,1781715043000,-110.43077836,0.00011678,7]
[425355858,1781715043000,-413.82969102,0.00012297,2]
[425355857,1781715043000,-4060.03023777,0.00012297,2]
[425355862,1781715043000,-500.0,0.00012397,2]
[425355859,1781715043000,-209.84243753,0.00012397,2]
[425355863,1781715043000,-268.51559036,0.00012397,2]
[425355861,1781715043000,-455.00228109,0.00012397,2]
[425355865,1781715043000,-97.03691289,0.00012397,2]
[425355864,1781715043000,-231.48440964,0.00012397,2]
[425355860,1781715043000,-500.0,0.00012397,2]
[425355898,1781715046000,-402.96308711,0.00012397,2]
[425355899,1781715046000,-342.23726319,0.00012397,2]
[425355900,1781715046000,-157.76273681,0.00012397,2]
[425355901,1781715046000,-500.0,0.00012397,2]
[425355902,1781715046000,-500.0,0.00012397,2]
[425355903,1781715046000,-500.0,0.00012397,2]
[425355906,1781715046000,-227746.98293649,0.00012398,2]
[425355905,1781715046000,-595.5958337,0.00012398,2]
[425355907,1781715046000,-7855.68216755,0.00012398,2]
[425355908,1781715046000,-92456.52670195,0.00012398,2]
[425355909,1781715046000,-35556.76142104,0.00012398,2]
[425355904,1781715046000,-2188.34877911,0.00012398,2]
[425355914,1781715451000,20034.15364678,7.6e-05,2]
[425355916,1781715498000,166.66666672,0.0001,30]
[425355917,1781715635000,-152.0,0.0001,2]
[425355918,1781715651000,-174.8286358,0.00011042,2]
[425355919,1781715669000,-152.0,0.00011042,2]
[425355920,1781715685000,-174.8286358,0.00011042,2]
[425355921,1781715702000,-152.0,0.00011042,2]
[425355922,1781715719000,-174.8286358,0.00011042,2]
[425355924,1781715735000,-152.0,0.0001089,2]
[425355925,1781715752000,-10.18967295,0.0001089,2]
[425355934,1781715941000,152.0,0.0001007,30]
[425356004,1781716232000,-163.450707,0.00012139,2]
[425355994,1781716232000,-1089.07022545,0.00011479,7]
[425355992,1781716232000,-300.0,0.00011478,2]
[425355990,1781716232000,-1089.07022545,0.00011254,7]
[425355984,1781716232000,-5000.0,0.00010502,2]
[425355988,1781716232000,-156.0,0.00011154,2]
[425355986,1781716232000,-3365.52473385,0.00010608,2]
[425355996,1781716232000,-216.18966743,0.00011648,2]
[425355999,1781716232000,-282.70323177,0.00011817,7]
[425356001,1781716232000,-1089.07022545,0.00011817,7]
[425356015,1781716232000,-500.0,0.00012194,2]
[425356013,1781716232000,-500.0,0.00012194,2]
[425356006,1781716232000,-1089.07022545,0.00012154,7]
[425356031,1781716232000,-758.11492859,0.00012196,2]
[425356017,1781716232000,-500.0,0.00012194,2]
[425356035,1781716232000,-725.49138895,0.00012196,2]
[425356033,1781716232000,-758.11492859,0.00012196,2]
[425356029,1781716232000,-758.11492859,0.00012196,2]
[425356027,1781716232000,-758.11492859,0.00012196,2]
[425356026,1781716232000,-758.11492859,0.00012196,2]
[425356024,1781716232000,-368.02656486,0.00012194,2]
[425356018,1781716232000,-500.0,0.00012194,2]
[425356002,1781716232000,-162.69893486,0.00011823,2]
[425356022,1781716232000,-508.14369438,0.00012194,2]
[425356008,1781716232000,-500.0,0.00012194,2]
[425356010,1781716232000,-500.0,0.00012194,2]
[425356011,1781716232000,-437.48669124,0.00012194,2]
[425356020,1781716232000,-500.0,0.00012194,2]
[425356325,1781716238000,-787.27319507,0.00012196,2]
[425356321,1781716238000,-787.27319507,0.00012196,2]
[425356305,1781716238000,-758.11492859,0.00012196,2]
[425356304,1781716238000,-758.11492859,0.00012196,2]
[425356301,1781716238000,-32.62353964,0.00012196,2]
[425356313,1781716238000,-758.11492859,0.00012196,2]
[425356308,1781716238000,-758.11492859,0.00012196,2]
[425356316,1781716238000,-758.11492859,0.00012196,2]
[425356311,1781716238000,-758.11492859,0.00012196,2]
[425356309,1781716238000,-758.11492859,0.00012196,2]
[425356319,1781716238000,-787.27319507,0.00012196,2]
[425356330,1781716238000,-787.27319507,0.00012196,2]
[425356329,1781716238000,-787.27319507,0.00012196,2]
[425356327,1781716238000,-787.27319507,0.00012196,2]
[425356347,1781716238000,-7670.17921266,0.00012197,2]
[425356323,1781716238000,-787.27319507,0.00012196,2]
[425356352,1781716238000,-23623.95552117,0.00012197,2]
[425356349,1781716238000,-48354.69939361,0.00012197,2]
[425356345,1781716238000,-55703.9088944,0.00012197,2]
[425356343,1781716238000,-12027.75319963,0.00012197,2]
[425356354,1781716238000,-4971.68155831,0.00012197,2]
[425356341,1781716238000,-732597.6150759,0.00012197,2]
[425356337,1781716238000,-1025.91538233,0.00012196,2]
[425356332,1781716238000,-787.27319507,0.00012196,2]
[425356339,1781716238000,-1025.91538233,0.00012196,2]
[425356336,1781716238000,-787.27319507,0.00012196,2]
[425356334,1781716238000,-787.27319507,0.00012196,2]
[425356632,1781716240000,-466327.44513313,0.00012197,2]
[425356607,1781716240000,-5000.0,0.00012074,2]
[425356609,1781716240000,-18801.73560438,0.00012197,2]
[425356719,1781716249000,-130754.77636409,0.00012197,2]
[425356718,1781716249000,-1836.46956948,0.00012197,2]
[425356772,1781716536000,152.0,0.00010104,30]
[425356773,1781717134000,152.0,0.00010056,30]
[425356834,1781717432000,-495.85429575,0.00010608,7]
[425356826,1781717432000,-575.04505306,0.00010608,7]
[425356840,1781717432000,-451.96132896,0.0001082,7]
[425356838,1781717432000,-168.19673012,0.0001082,7]
[425356836,1781717432000,-163.71458158,0.00010608,7]
[425357068,1781717436000,152.0,0.00010079,30]
[425357451,1781717446000,-304.0,0.0001082,7]
[425357573,1781718632000,-248.61231727,9.593e-05,2]
[425357568,1781718632000,-194.96266243,9.593e-05,2]
[425357571,1781718632000,-623.88051979,9.593e-05,2]
[425357566,1781718632000,-300.97619437,9.402e-05,2]
[425357569,1781718632000,-350.93279238,9.593e-05,2]
[425357575,1781718632000,-261.78151376,9.593e-05,2]
[425357560,1781718632000,-631.91982043,9.402e-05,2]
[425357789,1781718638000,-420.0,0.0001154,2]
[425357776,1781718638000,-1234.61393039,0.00011138,7]
[425357772,1781718638000,-6239.77617287,0.00011037,7]
[425357774,1781718638000,-175.969,0.00011138,2]
[425357770,1781718638000,-6239.77617287,0.0001082,7]
[425357764,1781718638000,-185.21648731,0.00010497,2]
[425357763,1781718638000,-300.0,0.00010496,2]
[425357766,1781718638000,-478.65260143,0.0001082,7]
[425357791,1781718638000,-301.16871441,0.00011594,2]
[425357761,1781718638000,-300.0,0.00010496,2]
[425357768,1781718638000,-221.03620477,0.0001082,7]
[425357759,1781718638000,-126.67523197,9.593e-05,2]
[425357779,1781718638000,-162.78019,0.00011201,2]
[425357777,1781718638000,-189.93628803,0.00011138,2]
[425357781,1781718638000,-6239.77617287,0.00011361,7]
[425357801,1781718638000,-189.11824848,0.00011777,2]
[425357803,1781718638000,-340.41284727,0.00011777,2]
[425357796,1781718638000,-6239.77617287,0.00011686,7]
[425357800,1781718638000,-500.0,0.00011731,2]
[425357798,1781718638000,-157334.88700724,0.00011695,2]
[425357805,1781718638000,-605.17839514,0.00011777,2]
[425357793,1781718638000,-523.56674229,0.00011631,2]
[425357784,1781718638000,-1234.61393039,0.00011457,7]
[425357782,1781718638000,-252.29509518,0.00011457,7]
[425357787,1781718638000,-339.0,0.0001154,2]
[425357786,1781718638000,-500.0,0.00011457,2]
[425357794,1781718638000,-162.78019,0.00011672,2]
[425357822,1781718639000,-523.56674229,0.00011964,2]
[425357820,1781718639000,-159.97381771,0.000119,2]
[425357818,1781718639000,-1234.61393042,0.00011881,7]
[425357816,1781718639000,-523.56674229,0.00011798,2]
[425357811,1781718639000,-349.29795238,0.00011777,2]
[425357809,1781718639000,-194.05441799,0.00011777,2]
[425357812,1781718639000,-620.97413757,0.00011777,2]
[425357807,1781718639000,-944.64565117,0.00011777,2]
[425357824,1781718639000,-417.15472785,0.00012,7]
[425357814,1781718639000,-969.30181786,0.00011777,2]
[425357837,1781718639000,-162.78019,0.00012144,2]
[425357835,1781718639000,-220.86259875,0.00012142,2]
[425357839,1781718639000,-152.0,0.00012192,2]
[425357826,1781718639000,-500.0,0.00012005,2]
[425357829,1781718639000,-523.56674229,0.00012131,2]
[425357850,1781718639000,-655180.28567442,0.00012326,2]
[425357833,1781718639000,-152.0,0.00012141,2]
[425357831,1781718639000,-152.0,0.0001214,7]
[425357840,1781718639000,-176.81071651,0.00012198,2]
[425357844,1781718639000,-152.0,0.00012274,2]
[425357842,1781718639000,-176.81071651,0.00012198,2]
[425357848,1781718639000,-523.56674229,0.00012297,2]
[425357846,1781718639000,-500.0,0.00012279,2]
[425357827,1781718639000,-6239.77617287,0.00012119,7]
[425357900,1781718640000,152.0,0.00010084,30]
[425358105,1781718646000,-152.0,0.00011732,7]
[425358104,1781718646000,-152.0,0.00011732,7]
[425358107,1781718646000,-7292.47391786,0.00012326,2]
[425358128,1781718646000,-2017.52951503,0.00012326,2]
[425358347,1781719055000,6143.19498621,7.6e-05,2]
[425358346,1781719055000,1000.0,7.6e-05,2]
[425358442,1781719833000,-1463.57576156,0.0001,2]
[425358444,1781719833000,-300.0,0.00010628,2]
[425358446,1781719833000,-389.14140138,0.00010629,2]
[425358448,1781719833000,-691.80693579,0.00010629,2]
[425358450,1781719833000,-1079.86738884,0.00010629,2]
[425358452,1781719833000,-257.36121674,0.00010629,2]
[425358454,1781719833000,-294.12710484,0.00010629,2]
[425358456,1781719833000,-459.11402772,0.00010629,2]
[425358458,1781719833000,-172.952245,0.00010911,2]
[425358460,1781719833000,-157.43401421,0.00011,2]
[425358471,1781719833000,-173.60006163,0.00012,2]
[425358465,1781719833000,-151.0,0.00011808,2]
[425358462,1781719833000,-420.0,0.00011683,2]
[425358467,1781719833000,-174.41,0.00011882,2]
[425358473,1781719833000,-100.20999804,0.00012018,2]
[425358469,1781719833000,-3615.42861068,0.00012,2]
[425358476,1781719833000,-367.0789516,0.00012018,2]
[425358478,1781719833000,-392.2130386,0.00012018,2]
[425358480,1781719833000,-652.765,0.00012018,2]
[425358483,1781719833000,-367.9769098,0.00012018,2]
[425358463,1781719833000,-152.0,0.00011732,7]
[425358821,1781719842000,-4056.43656084,0.00012018,2]
[425358819,1781719842000,-152.0,0.00011683,7]
[425359163,1781719847000,-522.0,0.00012018,2]
[425359478,1781721032000,-407.68795726,0.00010958,2]
[425359479,1781721032000,-465.92909401,0.00010958,2]
[425359481,1781721032000,-727.28619518,0.00010958,2]
[425359483,1781721032000,-188.03042136,0.00011534,2]
[425359476,1781721032000,-1211.06633219,0.00010848,2]
[425359675,1781721040000,-149.16101398,0.00011534,2]
[425359676,1781721040000,-526.3347561,0.00011534,2]
[425359677,1781721040000,-295.04250592,0.00011534,2]
[425359680,1781721040000,-300.0,0.00011722,2]
[425359681,1781721040000,-8330.09154803,0.00011723,2]
[425359678,1781721040000,-173.632,0.00011686,2]
[425359684,1781721040000,-500.0,0.00011821,2]
[425359685,1781721040000,-500.0,0.00011821,2]
[425359687,1781721040000,-500.0,0.00011821,2]
[425359686,1781721040000,-286.52109623,0.00011821,2]
[425359689,1781721040000,-500.0,0.00011821,2]
[425359690,1781721040000,-327.33858124,0.00011821,2]
[425359683,1781721040000,-616.92866392,0.00011821,2]
[425359705,1781721041000,-500.0,0.00011821,2]
[425359717,1781721041000,-500.0,0.00011821,2]
[425359719,1781721041000,-500.0,0.00011821,2]
[425359721,1781721041000,-500.0,0.00011821,2]
[425359737,1781721041000,-913.04781738,0.00011823,2]
[425359736,1781721041000,-466.21823008,0.00011823,2]
[425359725,1781721041000,-349.91671924,0.00011821,2]
[425359723,1781721041000,-500.0,0.00011821,2]
[425359733,1781721041000,-500.0,0.00011821,2]
[425359702,1781721041000,-500.0,0.00011821,2]
[425359729,1781721041000,-500.0,0.00011821,2]
[425359703,1781721041000,-500.0,0.00011821,2]
[425359708,1781721041000,-500.0,0.00011821,2]
[425359700,1781721041000,-500.0,0.00011821,2]
[425359716,1781721041000,-500.0,0.00011821,2]
[425359695,1781721041000,-500.0,0.00011821,2]
[425359714,1781721041000,-500.0,0.00011821,2]
[425359710,1781721041000,-500.0,0.00011821,2]
[425359707,1781721041000,-500.0,0.00011821,2]
[425359696,1781721041000,-500.0,0.00011821,2]
[425359693,1781721041000,-229.66141877,0.00011821,2]
[425359691,1781721041000,-172.66141876,0.00011821,2]
[425359694,1781721041000,-500.0,0.00011821,2]
[425359692,1781721041000,-270.33858123,0.00011821,2]
[425359698,1781721041000,-500.0,0.00011821,2]
[425359735,1781721041000,-913.04781738,0.00011823,2]
[425359712,1781721041000,-500.0,0.00011821,2]
[425359734,1781721041000,-913.04781738,0.00011823,2]
[425359727,1781721041000,-500.0,0.00011821,2]
[425359785,1781721041000,-1449.97840101,0.00011824,2]
[425359784,1781721041000,-50451.28858013,0.00011824,2]
[425359780,1781721041000,-915.03590537,0.00011823,2]
[425359778,1781721041000,-915.03590537,0.00011823,2]
[425359773,1781721041000,-981.52640367,0.00011823,2]
[425359782,1781721041000,-201.48411109,0.00011824,2]
[425359771,1781721041000,-981.52640367,0.00011823,2]
[425359775,1781721041000,-981.52640367,0.00011823,2]
[425359777,1781721041000,-915.03590537,0.00011823,2]
[425359766,1781721041000,-981.52640367,0.00011823,2]
[425359764,1781721041000,-981.52640367,0.00011823,2]
[425359768,1781721041000,-981.52640367,0.00011823,2]
[425359762,1781721041000,-981.52640367,0.00011823,2]
[425359731,1781721041000,-503.7269628,0.00011821,2]
[425359738,1781721041000,-913.04781738,0.00011823,2]
[425359741,1781721041000,-913.04781738,0.00011823,2]
[425359761,1781721041000,-981.52640367,0.00011823,2]
[425359747,1781721041000,-913.04781738,0.00011823,2]
[425359744,1781721041000,-913.04781738,0.00011823,2]
[425359740,1781721041000,-913.04781738,0.00011823,2]
[425359759,1781721041000,-981.52640367,0.00011823,2]
[425359756,1781721041000,-913.04781738,0.00011823,2]
[425359753,1781721041000,-913.04781738,0.00011823,2]
[425359757,1781721041000,-913.04781738,0.00011823,2]
[425359746,1781721041000,-913.04781738,0.00011823,2]
[425359942,1781721043000,-3128.59410575,0.00011824,2]
[425359921,1781721043000,-2439.82511158,0.00011824,2]
[425360341,1781721054000,-1840.1572979,0.00011824,2]
[425360343,1781721055000,-19211.11784142,0.00011824,2]
[425360342,1781721055000,-8078.709267,0.00011824,2]
[425360344,1781721055000,-967.78556795,0.00011824,2]
[425360346,1781721055000,-1931.94074293,0.00011824,2]
[425360348,1781721055000,-2452.93688462,0.00011824,2]
[425360347,1781721055000,-116800.85829555,0.00011824,2]
[425360345,1781721055000,-6320.20764113,0.00011824,2]
[425360862,1781722240000,-461.60894779,0.00010804,2]
[425360863,1781722240000,-820.6381294,0.00010804,2]
[425360866,1781722240000,-177.03446289,0.00011373,2]
[425360864,1781722240000,-1280.96483011,0.00010804,2]
[425360860,1781722240000,-300.0,0.00010803,2]
[425360859,1781722240000,-155.21875911,9.654e-05,2]
[425360865,1781722240000,-174.28255082,0.0001132,7]
[425360867,1781722240000,-318.66203319,0.00011373,2]
[425360861,1781722240000,-256.44941544,0.00010804,2]
[425360869,1781722240000,-884.28714211,0.00011373,2]
[425360876,1781722240000,-687.6936258,0.00011523,2]
[425360868,1781722240000,-566.51028123,0.00011373,2]
[425360872,1781722240000,-687.6936258,0.00011523,2]
[425360874,1781722240000,-687.6936258,0.00011523,2]
[425360870,1781722240000,-173.634,0.00011391,2]
[425360873,1781722240000,-687.6936258,0.00011523,2]
[425360875,1781722240000,-687.6936258,0.00011523,2]
[425360871,1781722240000,-326.35276105,0.00011523,2]
[425360881,1781722241000,-687.6936258,0.00011523,2]
[425360883,1781722241000,-687.6936258,0.00011523,2]
[425360893,1781722241000,-722.07830709,0.00011523,2]
[425360892,1781722241000,-722.07830709,0.00011523,2]
[425360880,1781722241000,-687.6936258,0.00011523,2]
[425360879,1781722241000,-687.6936258,0.00011523,2]
[425360877,1781722241000,-687.6936258,0.00011523,2]
[425360878,1781722241000,-687.6936258,0.00011523,2]
[425360886,1781722241000,-687.6936258,0.00011523,2]
[425360882,1781722241000,-687.6936258,0.00011523,2]
[425360884,1781722241000,-687.6936258,0.00011523,2]
[425360888,1781722241000,-687.6936258,0.00011523,2]
[425360885,1781722241000,-687.6936258,0.00011523,2]
[425360887,1781722241000,-687.6936258,0.00011523,2]
[425360898,1781722241000,-722.07830709,0.00011523,2]
[425360896,1781722241000,-722.07830709,0.00011523,2]
[425360899,1781722241000,-722.07830709,0.00011523,2]
[425360895,1781722241000,-722.07830709,0.00011523,2]
[425360900,1781722241000,-7430.11814709,0.00011524,2]
[425360894,1781722241000,-722.07830709,0.00011523,2]
[425360889,1781722241000,-687.6936258,0.00011523,2]
[425360890,1781722241000,-722.07830709,0.00011523,2]
[425360891,1781722241000,-722.07830709,0.00011523,2]
[425360897,1781722241000,-722.07830709,0.00011523,2]
[425360952,1781722249000,-445.0,0.00012815,2]
[425360943,1781722249000,-1089.07022546,0.00012604,7]
[425360944,1781722249000,-326.8661211,0.00012625,2]
[425360946,1781722249000,-166.394006,0.00012638,2]
[425360941,1781722249000,-815.15,0.00012329,2]
[425360942,1781722249000,-394.75,0.000125,2]
[425360945,1781722249000,-326.8661211,0.0001263,2]
[425360949,1781722249000,-1418.0,0.00012815,2]
[425360951,1781722249000,-193.198,0.00012815,2]
[425360954,1781722249000,-278.0,0.0001305,2]
[425360953,1781722249000,-73378.81268312,0.00013,2]
[425360955,1781722249000,-326.8661211,0.00013452,2]
[425360950,1781722249000,-745.0,0.00012815,2]
[425360957,1781722249000,-24672.668715,0.000136,2]
[425360948,1781722249000,-958.0,0.00012815,2]
[425360958,1781722249000,-155.6,0.00013697,2]
[425360965,1781722249000,-500.0,0.00013698,2]
[425360959,1781722249000,-500.0,0.00013698,2]
[425360961,1781722249000,-500.0,0.00013698,2]
[425360966,1781722249000,-500.0,0.00013698,2]
[425360956,1781722249000,-166.394006,0.00013467,2]
[425360947,1781722249000,-1841.0,0.00012815,2]
[425360939,1781722249000,-195.63,0.00012329,2]
[425360935,1781722249000,-850.84006936,0.00011891,2]
[425360968,1781722249000,-500.0,0.00013698,2]
[425360920,1781722249000,-405363.59559169,0.00011524,2]
[425360919,1781722249000,-7288.83010457,0.00011517,2]
[425360921,1781722249000,-151.0,0.00011617,2]
[425360922,1781722249000,-151.0,0.00011617,2]
[425360927,1781722249000,-151.0,0.00011617,2]
[425360923,1781722249000,-151.0,0.00011617,2]
[425360924,1781722249000,-151.0,0.00011617,2]
[425360926,1781722249000,-151.0,0.00011617,2]
[425360940,1781722249000,-163.02,0.00012329,2]
[425360928,1781722249000,-151.0,0.00011617,2]
[425360929,1781722249000,-151.0,0.00011617,2]
[425360931,1781722249000,-188.75178884,0.00011617,2]
[425360930,1781722249000,-151.0,0.00011617,2]
[425360936,1781722249000,-338.04,0.00012329,2]
[425360933,1781722249000,-166.394006,0.0001181,2]
[425360937,1781722249000,-281.7,0.00012329,2]
[425360932,1781722249000,-500.0,0.00011617,2]
[425360938,1781722249000,-234.75,0.00012329,2]
[425360934,1781722249000,-420.0,0.00011874,2]
[425360925,1781722249000,-151.0,0.00011617,2]
[425360960,1781722249000,-500.0,0.00013698,2]
[425360991,1781722249000,-1253.11,0.00013698,2]
[425360962,1781722249000,-500.0,0.00013698,2]
[425361001,1781722249000,-500.0,0.00013698,2]
[425360998,1781722249000,-1253.11,0.00013698,2]
[425360997,1781722249000,-1253.11,0.00013698,2]
[425361012,1781722249000,-500.0,0.00013698,2]
[425361000,1781722249000,-1253.21106705,0.00013698,2]
[425360993,1781722249000,-1253.11,0.00013698,2]
[425360999,1781722249000,-1253.11,0.00013698,2]
[425360996,1781722249000,-1253.11,0.00013698,2]
[425360994,1781722249000,-1253.11,0.00013698,2]
[425360992,1781722249000,-1253.11,0.00013698,2]
[425360995,1781722249000,-1253.11,0.00013698,2]
[425361005,1781722249000,-500.0,0.00013698,2]
[425361004,1781722249000,-500.0,0.00013698,2]
[425361008,1781722249000,-500.0,0.00013698,2]
[425361003,1781722249000,-500.0,0.00013698,2]
[425361010,1781722249000,-300.378623,0.00013698,2]
[425361009,1781722249000,-500.0,0.00013698,2]
[425361006,1781722249000,-500.0,0.00013698,2]
[425361011,1781722249000,-633.04341449,0.00013698,2]
[425360964,1781722249000,-500.0,0.00013698,2]
[425361002,1781722249000,-500.0,0.00013698,2]
[425360990,1781722249000,-1253.11,0.00013698,2]
[425361007,1781722249000,-500.0,0.00013698,2]
[425360986,1781722249000,-1253.11,0.00013698,2]
[425360987,1781722249000,-1253.11,0.00013698,2]
[425360967,1781722249000,-500.0,0.00013698,2]
[425360963,1781722249000,-500.0,0.00013698,2]
[425360969,1781722249000,-500.0,0.00013698,2]
[425360971,1781722249000,-504.32388091,0.00013698,2]
[425360973,1781722249000,-500.0,0.00013698,2]
[425360972,1781722249000,-500.0,0.00013698,2]
[425360976,1781722249000,-201.22444736,0.00013698,2]
[425360974,1781722249000,-500.0,0.00013698,2]
[425360977,1781722249000,-1253.11,0.00013698,2]
[425360970,1781722249000,-500.0,0.00013698,2]
[425360975,1781722249000,-500.0,0.00013698,2]
[425360980,1781722249000,-1253.11,0.00013698,2]
[425360978,1781722249000,-1253.11,0.00013698,2]
[425360984,1781722249000,-1253.11,0.00013698,2]
[425360989,1781722249000,-1253.11,0.00013698,2]
[425360988,1781722249000,-1253.11,0.00013698,2]
[425360985,1781722249000,-1253.11,0.00013698,2]
[425360982,1781722249000,-1253.11,0.00013698,2]
[425360981,1781722249000,-1253.11,0.00013698,2]
[425360983,1781722249000,-1253.11,0.00013698,2]
[425360979,1781722249000,-1253.11,0.00013698,2]
[425361055,1781722250000,-192860.5723317,0.0001552,2]
[425361053,1781722250000,-210.0,0.00015507,2]
[425361064,1781722250000,-19738.134972,0.000156,2]
[425361063,1781722250000,-306.59,0.00015551,2]
[425361054,1781722250000,-210.11,0.00015507,2]
[425361056,1781722250000,-151.0,0.0001552,2]
[425361048,1781722250000,-285.5444174,0.00015096,2]
[425361050,1781722250000,-1063.49890274,0.000153,4]
[425361049,1781722250000,-457.8996078,0.00015096,2]
[425361043,1781722250000,-326.8661211,0.00015091,2]
[425361061,1781722250000,-160.0,0.00015545,2]
[425361047,1781722250000,-457.8996079,0.00015096,2]
[425361052,1781722250000,-167.92495011,0.000155,2]
[425361062,1781722250000,-160.0,0.00015545,2]
[425361069,1781722250000,-1841.0,0.00015815,2]